{"text_format":"3","workbook":"xlsx","n_sheets":4,"sheets":["Ostoslista","Budjetin erittely","Tehtäväluettelo","Jaettavien luettelo"],"not_rendered":{"charts":2,"images":2,"defined_names":12},"read":"whole","date_system":"1900"}

{"sheet":"Ostoslista","index":0,"n_rows":25,"n_cols":8,"rows_kept":25,"merged":[[0,1,0,2],[2,1,2,7],[3,1,3,2],[4,4,6,7]]}
[null,"Takaisin kouluun",null,"Suunnittelu"]
[]
[null,"Seuraa ostostesi edistymistä verrattuna budjetin erittelyyn syötettyihin budjettiluokan summiin."]
[null,"Budjetin yhteenveto",null,null,{"$f":"\"Ostotapahtuman edistyminen (\"&COUNTIFS(Tarkistusluettelo[Ostettu], \">0\")&\" / \"&COUNTIFS(Tarkistusluettelo[Ostettava], \">0\")&\")\"","v":"Ostotapahtuman edistyminen (1 / 6)"}]
[null,"Budjetti",{"v":1500,"d":"1,500.00 €"},null,{"$f":"IFERROR(COUNTIFS(Tarkistusluettelo[Ostettava],\">0\",Tarkistusluettelo[Ostettu],\">0\")/SumItemsToBuy,0)","v":{"v":0.16666666666666666,"d":"17%"}}]
[null,"Ostoslistan kokonaissumma",{"$f":"IFERROR(SUM(ChecklistTotal), \"\")","v":{"v":365,"d":"365.00 €"}}]
[null,"Jäljellä olevat käteisvarat",{"$f":"IFERROR(C5-C6, \"\")","v":{"v":1135,"d":"1,135.00 €"}}]
[null,"Ostoslista"]
[null,"Tuote","Luokka","Määrä","Ostettava","Kulut","Ostettu","Kustannukset yhteensä"]
[null,"Matematiikka","Oppikirjat",1,1,{"v":55,"d":"55.00 €"},1,{"$f":"IFERROR(Tarkistusluettelo[Määrä]*Tarkistusluettelo[Kulut], \"\")","v":{"v":55,"d":"55.00 €"}}]
[null,"Englanti","Oppikirjat",1,1,null,null,{"$f":"IFERROR(Tarkistusluettelo[Määrä]*Tarkistusluettelo[Kulut], \"\")","v":0}]
[null,"Reppu","Tarvikkeet",1,null,{"v":30,"d":"30.00 €"},null,{"$f":"IFERROR(Tarkistusluettelo[Määrä]*Tarkistusluettelo[Kulut], \"\")","v":{"v":30,"d":"30.00 €"}}]
[null,"Laskin","Tarvikkeet",1,{"$nulls":3},{"$f":"IFERROR(Tarkistusluettelo[Määrä]*Tarkistusluettelo[Kulut], \"\")","v":0}]
[null,"Korostuskynät","Tarvikkeet",3,{"$nulls":3},{"$f":"IFERROR(Tarkistusluettelo[Määrä]*Tarkistusluettelo[Kulut], \"\")","v":0}]
[null,"Puku","Vaatteet",2,1,{"v":100,"d":"100.00 €"},null,{"$f":"IFERROR(Tarkistusluettelo[Määrä]*Tarkistusluettelo[Kulut], \"\")","v":{"v":200,"d":"200.00 €"}}]
[null,"Paita, napitettava","Vaatteet",4,{"$nulls":3},{"$f":"IFERROR(Tarkistusluettelo[Määrä]*Tarkistusluettelo[Kulut], \"\")","v":0}]
[null,"Paita, t-paidat","Vaatteet",5,{"$nulls":3},{"$f":"IFERROR(Tarkistusluettelo[Määrä]*Tarkistusluettelo[Kulut], \"\")","v":0}]
[null,"Shortsit","Vaatteet",2,{"$nulls":3},{"$f":"IFERROR(Tarkistusluettelo[Määrä]*Tarkistusluettelo[Kulut], \"\")","v":0}]
[null,"Lenkkarit","Vaatteet",2,1,null,null,{"$f":"IFERROR(Tarkistusluettelo[Määrä]*Tarkistusluettelo[Kulut], \"\")","v":0}]
[null,"Sukat","Vaatteet",10,{"$nulls":3},{"$f":"IFERROR(Tarkistusluettelo[Määrä]*Tarkistusluettelo[Kulut], \"\")","v":0}]
[null,"Kevättakki","Vaatteet",1,1,{"v":80,"d":"80.00 €"},null,{"$f":"IFERROR(Tarkistusluettelo[Määrä]*Tarkistusluettelo[Kulut], \"\")","v":{"v":80,"d":"80.00 €"}}]
[null,"Villatakit","Vaatteet",1,{"$nulls":3},{"$f":"IFERROR(Tarkistusluettelo[Määrä]*Tarkistusluettelo[Kulut], \"\")","v":0}]
[null,"Puserot","Vaatteet",1,{"$nulls":3},{"$f":"IFERROR(Tarkistusluettelo[Määrä]*Tarkistusluettelo[Kulut], \"\")","v":0}]
[null,"Alusvaatteet","Vaatteet",10,{"$nulls":3},{"$f":"IFERROR(Tarkistusluettelo[Määrä]*Tarkistusluettelo[Kulut], \"\")","v":0}]
[null,"Talvitakki","Vaatteet",1,1,null,null,{"$f":"IFERROR(Tarkistusluettelo[Määrä]*Tarkistusluettelo[Kulut], \"\")","v":0}]

{"sheet":"Budjetin erittely","index":1,"n_rows":6,"n_cols":3,"rows_kept":6}
[null,"Budjetin erittely"]
[null,"Lisää luokkia ja budjettisummia, joihin voit verrata ostoslistaasi."]
[null,"Luokka","Kustannukset yhteensä"]
[null,"Vaatteet",{"$f":"IFERROR(SUMIFS(Tarkistusluettelo[Kustannukset yhteensä],Tarkistusluettelo[Luokka],Luokka[Luokka]), \"\")","v":{"v":280,"d":"280.00 €"}}]
[null,"Tarvikkeet",{"$f":"IFERROR(SUMIFS(Tarkistusluettelo[Kustannukset yhteensä],Tarkistusluettelo[Luokka],Luokka[Luokka]), \"\")","v":{"v":30,"d":"30.00 €"}}]
[null,"Oppikirjat",{"$f":"IFERROR(SUMIFS(Tarkistusluettelo[Kustannukset yhteensä],Tarkistusluettelo[Luokka],Luokka[Luokka]), \"\")","v":{"v":55,"d":"55.00 €"}}]

{"sheet":"Tehtäväluettelo","index":2,"n_rows":22,"n_cols":3,"rows_kept":22}
[null,"Tehtäväluettelo"]
[null,"Seuraa kaikkia tehtäviä, jotka pitää saada hoidettua ennen koulun alkua."]
[null,"Valmis","Tehtävä"]
[null,"x","Viimeistele kaikki rekisteröintilomakkeet"]
[null,null,"Laadi tarvittaessa aikataulut koulun lääkärintarkastuksille"]
[null,null,"Vahvista kaikki tarvittavat rokotukset"]
[null,null,"Hanki lääkäriltä annosteluohjeet kaikille tarvittaville lääkkeille"]
[null,null,"Tarkista koulun pukeutumissäännöt"]
[null,null,"Hanki luettelo tarvittavista koulutarvikkeista"]
[null,null,"Käy tapaamassa opettajaa"]
[null,null,"Selvitä, mitä viestintätapaa opettaja mieluiten käyttää (puhelin, sähköposti, kirjallinen viesti)"]
[null,null,"Tutustu kouluun yhdessä lapsesi kanssa"]
[null,null,"Auta lastasi opettelemaan kotipuhelinnumerosi, työpuhelinnumerosi ja kotiosoite"]
[null,null,"Järjestä kuljetus, sovi turvallinen tapaamispaikka ja harjoittele rutiineja"]
[null,null,"Kävellessä harjoittele lapsesi kanssa koulureittiä molempiin suuntiin muutamia kertoja"]
[null,null,"Kimppakyytiä käytettäessä esittele lapsesi kaikille kimppakyytikuskeille"]
[null,null,"Bussilla ajettaessa määritä bussivuorot ja pysäkit"]
[null,null,"Järjestä lastenhoito/koulunjälkeinen hoito"]
[null,null,"Suunnittele aamiaisten, kouluvälipalojen, eväspakettien ja koulunjälkeisten välipalojen ruokalista"]
[null,null,"Määrittele kotitehtävien tekopaikka ja aikataulu"]
[null,null,"Luo nukkumaanmenorutiinit ainakin kaksi viikkoa ennen koulun alkua "]
[null,null,"Valmistele koulun kaikkien tapahtumien ja toimien kalenteri"]

{"sheet":"Jaettavien luettelo","index":3,"n_rows":4,"n_cols":5,"rows_kept":4}
[null,"Jaettavien luettelo",null,null,"Jaa tämä luettelo muiden kanssa niin, että he voivat tehdä siihen omat lisäyksensä. Valitse Jaa oikeassa yläkulmassa tai paina Alt, sitten YU. Tallenna tiedosto OneDriveen ja lähetä linkki ystäville."]
[null,"Nimi","Sähköposti","Jaettu?"]
[null,"Henkilö 1","sejase@sahkoposti.com","Kyllä"]
[null,"Henkilö 2","sejase@sahkoposti.com","Ei"]